Cogmind - Beta 13 @@@ ROGUE MODE // 2024.04.27 @ 19:18:20 Player: f_ Result: Destroyed by as-68571 with Assembled Blade Performance ------------- Evolutions (0) 0 Regions Visited (3) 600 Robots Destroyed (20) 100 Value Destroyed (447) 447 Prototype IDs (0) 0 Alien Tech Used (0) 0 Bonus (110) 110 TOTAL SCORE: 1257 Bonus ------- Follower Combat Kills 133 Friendly Fire -23 Cogmind --------- Core Integrity 0/250 Matter 295/300 Energy 80/100 System Corruption 0% Temperature Cool (0) Movement Flying (1560) Ox19 Location -10/Exiles Parts ------- > --- POWER (1) -------- (None) > --- PROPULSION (2) --- Flight Unit > --- UTILITY (2) ------ Huge Storage Unit > --- WEAPON (2) ------- (None) > --- INVENTORY (25) --- Light Ion Engine Flight Unit Flight Unit Flight Unit Flight Unit Small Storage Unit Sensor Array Signal Interpreter Terrain Scanner Light Armor Plating Small Laser Peak State ------------ > --- POWER ------------ (None) > --- PROPULSION ------- Compact Wheel Compact Wheel > --- UTILITY ---------- Huge Storage Unit Structural Scanner > --- WEAPON ----------- Medium Laser Rocket Launcher > --- INVENTORY -------- Light Ion Engine Flight Unit Flight Unit Flight Unit Flight Unit Small Storage Unit Sensor Array Signal Interpreter Terrain Scanner Small Laser [Rating: 8] Favorites ----------- Power Ion Engine Engine Ion Engine Propulsion Compact Wheel Treads Light Treads Wheel Compact Wheel Utility Huge Storage Unit Device Structural Scanner Storage Huge Storage Unit Weapon Medium Laser Energy Gun Medium Laser Ballistic Gun Assault Rifle Launcher Rocket Launcher Special Weapon Mining Laser Build | -11 -10 -10 -10 ------- Run | Yrd Mat Min Exi Slots Evolved . | . . . . Power . | . . . . Propulsion . | . . . . Utility . | . . . . Weapon . | . . . . Parts Attached 17 | 7 4 5 1 Power 3 | 2 . 1 . Engine 3 | 2 . 1 . Core . | . . . . Reactor . | . . . . Propulsion 4 | 2 . 1 1 Treads 1 | 1 . . . Leg . | . . . . Wheel 2 | 1 . 1 . Hover . | . . . . Flight 1 | . . . 1 Utility 3 | 1 2 . . Device 1 | . 1 . . Storage 2 | 1 1 . . Processor . | . . . . Hackware . | . . . . Protection . | . . . . Artifact . | . . . . Weapon 7 | 2 2 3 . Energy Gun 3 | 1 1 1 . Energy Cannon . | . . . . Ballistic Gun 1 | 1 . . . Ballistic Cannon . | . . . . Launcher 2 | . 1 1 . Special Weapon 1 | . . 1 . Impact Weapon . | . . . . Slashing Weapon . | . . . . Piercing Weapon . | . . . . Special Melee Weapon . | . . . . Unidentified Prototypes . | . . . . Parts Lost 9 | . 2 3 4 Power 1 | . . 1 . Propulsion 3 | . 1 . 2 Utility 1 | . . 1 . Weapon 4 | . 1 1 2 Highest Loss Streak 4 | . 2 3 4 To Critical Strikes . | . . . . Average Slot Usage (%) 83 | . 91 79 82 Engine 13 | . 14 13 14 Treads 2 | . 9 . . Wheel 21 | . 14 23 26 Device 6 | . 11 4 . Storage 14 | . 14 14 14 Energy Gun 15 | . 10 16 26 Ballistic Gun 2 | . 9 . . Launcher 4 | . 6 4 . Special Weapon 1 | . . 1 . Naked Turns . | . . . . Heaviest Build 92 | 13 91 92 90 Greatest Support 32 | 16 16 32 32 Greatest Overweight (x) 5 | . 5 5 5 Average Overweight (x) 2 | . . 2 2 Largest Inventory Capacity 25 | 8 25 25 25 Average Capacity 20 | 7 10 25 25 Most Carried 14 | 2 5 14 12 Average Carried 8 | 1 3 10 12 Final Capacity 25 | 8 25 25 25 Final Carried 12 | 2 5 12 11 Class Distribution -------------------- 100% | Mutant Dominant Class ---------------- Mutant | -10/Materials Mutant | -10/Mines Mutant | -10/Exiles Resources | -11 -10 -10 -10 ----------- Run | Yrd Mat Min Exi Matter Collected 528 | 162 84 282 . Remotely . | . . . . Salvage Created 497 | . 347 150 . Parts 33 | . 24 9 . Haulers Intercepted . | . . . . Recyclers Shooed . | . . . . Parts Field Recycled . | . . . . Retrieved Matter . | . . . . Parts Self-Destructed . | . . . . Prevented . | . . . . Kills | -11 -10 -10 -10 ------- Run | Yrd Mat Min Exi Combat Hostiles Destroyed 15 | . 11 4 . Guns 4 | . 3 1 . AOE 11 | . 8 3 . Classes Destroyed 6 | . 6 . . Worker 1 | . 1 . . Recycler 2 | . 1 1 . Operator 1 | . 1 . . Watcher 1 | . 1 . . Swarmer 6 | . 3 3 . Grunt 9 | . 8 1 . Best Kill Streak 5 | . 5 4 . Combat Bots Only 4 | . 4 3 . Max Kills in Single Turn 4 | . 4 3 . Gunslinging . | . . . . Exploded 3 | . 3 3 . Melee . | . . . . Uniques/NPCs Destroyed . | . . . . Combat | -11 -10 -10 -10 -------- Run | Yrd Mat Min Exi Hostile Shots Fired 100 | . 65 18 17 Missed 24 | . 18 1 5 Damage Taken 1062 | . 595 239 228 Core 252 | . 122 43 87 Absorbed by Shields . | . . . . Core Remaining (%) 100 | 100 . . . Volleys Fired 58 | . 42 15 1 Largest 2 | . 2 1 1 Hottest 100 | . 60 100 56 Shots Fired 79 | . 63 15 1 Gun 60 | . 55 4 1 Cannon . | . . . . Launcher 12 | . 8 4 . Special 7 | . . 7 . Kinetic 24 | . 24 . . Thermal 43 | . 31 11 1 Explosive 12 | . 8 4 . Electromagnetic . | . . . . Robot Hit Streak 14 | . 14 3 4 Robot Miss Streak 3 | . 3 3 . Penetration Max . | . . . . Secondary Targets . | . . . . Shots Hit Robots 45 | . 41 3 1 Core Hits 37 | . 27 9 1 Critical Kills . | . . . . Critical Parts Destroyed . | . . . . Critical Strikes 1 | . 1 . . Burn 1 | . 1 . . Melee Attacks . | . . . . Impact . | . . . . Slashing . | . . . . Piercing . | . . . . Sneak Attacks . | . . . . Combat Hostiles . | . . . . Follow-up Attacks . | . . . . Damage Inflicted 1222 | . 970 237 15 Guns 507 | . 467 25 15 Cannons . | . . . . Explosions 711 | . 499 212 . Melee . | . . . . Ramming 4 | . 4 . . Kinetic 207 | . 207 . . Thermal 300 | . 260 25 15 Explosive 711 | . 499 212 . Electromagnetic . | . . . . Impact . | . . . . Slashing . | . . . . Piercing . | . . . . Highest Corruption . | . . . . Average Corruption . | . . . . Corruption Purged . | . . . . Corruption Blocked . | . . . . Overload Shots . | . . . . Overflow Damage 3 | . . 3 . Projectiles . | . . . . Explosions 3 | . . 3 . Melee . | . . . . Knockbacks . | . . . . Impact . | . . . . Kinetic . | . . . . Secondary . | . . . . Self-Inflicted Damage 78 | . 37 41 . Shots 5 | . 4 1 . Rammed 1 | . 1 . . Targets Rammed 1 | . 1 . . Kicked . | . . . . Crushed . | . . . . Highest Temperature 60 | . 60 60 36 Average Temperature 20 | . 17 24 20 Received Heat Transfer 374 | . 309 45 20 Siege Activations . | . . . . Robots Corrupted . | . . . . Combat Hostiles . | . . . . Parts Fried . | . . . . Impact Corruptions . | . . . . Robots Melted . | . . . . Combat Hostiles . | . . . . Parts Melted 1 | . 1 . . Heat Transferred 807 | . 696 74 37 Parts Sabotaged . | . . . . Parts Stolen . | . . . . Parts Stripped . | . . . . Power Chain Reactions . | . . . . Alert | -11 -10 -10 -10 ------- Run | Yrd Mat Min Exi Peak Influence 381 | . 381 262 . Initial 12 | . . 12 . Average 103 | . 157 85 . Maximum Alert Level 1 | . 1 1 . Low Security (%) 78 | 100 54 86 . Level 1 21 | . 45 13 . Level 2 . | . . . . Level 3 . | . . . . Level 4 . | . . . . Level 5 . | . . . . High Security . | . . . . Max Security . | . . . . Squads Dispatched 5 | . 5 . . Investigation 4 | . 4 . . Extermination . | . . . . Reinforcement 1 | . 1 . . Assault . | . . . . Garrison . | . . . . Intercept . | . . . . Searches Triggered . | . . . . Construction Impeded . | . . . . Haulers Reinforced . | . . . . Active Scanning Responses . | . . . . Cargo Convoy Interrupts . | . . . . Stealth | -11 -10 -10 -10 --------- Run | Yrd Mat Min Exi Distress Signals 1 | . 1 . . Communications Jammed . | . . . . Distress Signals . | . . . . Times Spotted 43 | . 22 14 7 Peak Tracking Total 9 | . 5 4 9 Tactical Retreats 3 | . 1 2 . Traps | -11 -10 -10 -10 ------- Run | Yrd Mat Min Exi Traps Triggered . | . . . . Indirectly . | . . . . Trap Hack Attempts . | . . . . Triggered . | . . . . Disarmed . | . . . . Reprogrammed . | . . . . Reused . | . . . . Traps Extracted . | . . . . Installed . | . . . . Triggered . | . . . . Machines | -11 -10 -10 -10 ---------- Run | Yrd Mat Min Exi Machines Disabled 3 | . 1 2 . Max in Single Turn 1 | . 1 1 . Machines Repaired . | . . . . Machines Dismantled . | . . . . Machines Sabotaged . | . . . . Overloaded Fab Kills . | . . . . Hacking | -11 -10 -10 -10 --------- Run | Yrd Mat Min Exi Machines Accessed 4 | . 4 . . Terminals 4 | . 4 . . Fabricators . | . . . . Repair Stations . | . . . . Recycling Units . | . . . . Scanalyzers . | . . . . Garrison Access . | . . . . Total Hacks 14 | . 14 . . Successful 4 | . 4 . . Failed 10 | . 10 . . Catastrophic 2 | . 2 . . Database Lockouts . | . . . . Manual 14 | . 14 . . Terminals 14 | . 14 . . Fabricators . | . . . . Repair Stations . | . . . . Recycling Units . | . . . . Scanalyzers . | . . . . Garrison Access . | . . . . Terminal Hacks 3 | . 3 . . Robot Analysis 1 | . 1 . . Terminal Index 1 | . 1 . . Unreport Threat 1 | . 1 . . Fabricator Hacks . | . . . . Repair Station Hacks . | . . . . Recycling Unit Hacks . | . . . . Scanalyzer . | . . . . Garrison Access Hacks . | . . . . Unauthorized Hacks 1 | . 1 . . Terminals 1 | . 1 . . Botnet 1 | . 1 . . Fabricators . | . . . . Repair Stations . | . . . . Recycling Units . | . . . . Scanalyzers . | . . . . Garrison Access . | . . . . Data Cores Recovered . | . . . . Used . | . . . . Hacking Detections 4 | . 4 . . Full Trace Events 4 | . 4 . . Feedback Events . | . . . . Feedback Blocked . | . . . . Robot Schematics Acquired . | . . . . Robots Built . | . . . . Authchips . | . . . . Time . | . . . . Total Robot Build Rating . | . . . . Part Schematics Acquired . | . . . . Parts Built . | . . . . Authchips . | . . . . Time . | . . . . Total Part Build Rating . | . . . . Parts Repaired . | . . . . Time . | . . . . Parts Recycled . | . . . . Recycled Matter . | . . . . Retrieved Matter . | . . . . Retrieved Components . | . . . . Parts Scanalyzed . | . . . . Part Schematics Acquired . | . . . . Parts Damaged . | . . . . Bothacking | -11 -10 -10 -10 ------------ Run | Yrd Mat Min Exi Used RIF Installer . | . . . . Robots Hacked . | . . . . Non-combat . | . . . . Combat . | . . . . Robot Hacks Applied . | . . . . Relay Couplers Released . | . . . . Fabnet Peak Effective % . | . . . . Robots Rewired . | . . . . Allies Hacked . | . . . . Hacks Repelled . | . . . . Allies | -11 -10 -10 -10 -------- Run | Yrd Mat Min Exi Total Allies 4 | . . 4 . Largest Group 3 | . . 3 . Highest-Rated Group 47 | . . 47 . Highest-Rated Ally 31 | . . 31 . Total Orders . | . . . . Ally Attacks 36 | . . 36 . Total Damage 526 | . . 526 . Kills 9 | . . 9 . Allies Corrupted . | . . . . Allies Melted . | . . . . Intel | -11 -10 -10 -10 ------- Run | Yrd Mat Min Exi Robot Analysis Total 1 | . 1 . . Derelict Logs Recovered 1 | . . 1 . Drone Launches . | . . . . Drone Recoveries . | . . . . Exploration | -11 -10 -10 -10 ------------- Run | Yrd Mat Min Exi Turns Passed 1503 | 42 405 961 95 Spaces Moved 965 | 32 243 620 70 Core 2 | 2 . . . Treads . | . . . . Legs . | . . . . Wheels 963 | 30 243 620 70 Hover . | . . . . Flight . | . . . . Fastest Speed 50 | 50 100 130 130 Average Speed 130 | 96 110 140 131 Slowest Speed 175 | 100 175 175 175 Overloaded Moves . | . . . . Propulsion Burnouts . | . . . . Robots Hopped . | . . . . Cave-ins Triggered . | . . . . Exploration Rate (%) 42 | 4 44 99 24 Regions Visited 3 Branch Regions 2 Pre-discovered Areas . | . . . . Known Exits Taken . | . . . . Unknown Exits Taken 3 | 1 1 1 . Scrap Searched 2 | . . 2 . Spaces Dug 6 | . . 6 . Terrain Destroyed 95 | . 47 48 . Melee . | . . . . Projectile 6 | . . 6 . AOE 89 | . 47 42 . Terrain Rammed . | . . . . Walls Destroyed . | . . . . Machines Disabled . | . . . . Actions | -11 -10 -10 -10 --------- Run | Yrd Mat Min Exi Total 1108 | 39 315 681 73 Wait 53 | . 23 30 . Move 962 | 31 242 619 70 Hop . | . . . . Pick Up 14 | 1 3 10 . Fast Attach 9 | 6 1 2 . Attach 4 | . 1 2 1 Detach . | . . . . Swap 4 | 1 2 1 . Drop 3 | . . 2 1 Fire 58 | . 42 15 1 Melee . | . . . . Ram 1 | . 1 . . Kick . | . . . . Crush . | . . . . Escape Stasis . | . . . . Rewire . | . . . . Trap . | . . . . Miscellaneous . | . . . . Route ------- -11/Scrapyard -10/Materials -10/Mines (discovered 3 exits: [*Mat x2] / [*Exi]) -10/Exiles History --------- Turn | Location | Event 28 | -11/Scrapyard | Discovered new exit (range 16) 43 | -11/Scrapyard | Entered Materials 107 | -10/Materials | Discovered new exit (range 16) 309 | -10/Materials | Build established: Mutant 448 | -10/Materials | Entered Mines 455 | -10/Mines | Received a Rocket Launcher from a helpful Derelict 502 | -10/Mines | Core integrity fell below 50% 534 | -10/Mines | Assisted by bots powering up and referring to "LRC-V3" 623 | -10/Mines | Discovered new exit (range 9) 675 | -10/Mines | Learned Materials garrison access intel 783 | -10/Mines | Lost 3 parts (1p1u1w) 1050 | -10/Mines | Discovered new exit (range 9) 1083 | -10/Mines | Received a Mining Laser from a helpful Derelict 1403 | -10/Mines | Deemed a non-threat by the Exiles lab entrance 1403 | -10/Mines | Discovered new exit (range 5) 1409 | -10/Mines | Entered Exiles 1441 | -10/Exiles | Met 8R-AWN 1463 | -10/Exiles | Met EX-HEX 1499 | -10/Exiles | Attacked by the Exiles 1504 | -10/Exiles | Core integrity fell below 20% 1504 | -10/Exiles | Destroyed by as-68571 with Assembled Blade Last Messages --------------- They're clearly not of 0b10 construction, and their tech is weird, seemingly copying a wide array of components of other bots with little pattern or logic. It's almost like the early stages of some sort of... evolution. I'd love to just go ask the Imprinter what all this is about, she must know something, but I doubt that would end well. The Zionites will tell you those Marauders at the gates are defenses set up by Warlord... Nope, the Imprinter put them there mostly to keep us out! Anyway, I've got to get back to poking and prodding these nasty little guys. Go see BIN. I can't imagine you'll want to stay in our boring little cave for long, and we could use some help with the project in the back. 01499_ EXILES: Hostile robot within lab perimeter. Defensive protocols time, folks! 01499_ Med. Laser destroyed. 01499_ Com. Wheel destroyed. 01503_ Dropped Ion Engine. 01504_ Machine disabled. 01504_ Beam Rifle destroyed. Map ----- +----------------------------------------------------+ | ?????????????????????????????????????????????????? | | ?????????????????????????????????????????????????? | | ?????????????????????????????????????????????????? | | ?????????????????????????????????????????????????? | | ?????????????????????????????????????????????????? | | ??????????? ????????????????????????????????????? | | ?????????? ?????###########???????????????????? | | ?????????? #####"""""""""##??????????????????? | | ?????????? " """ """"##?????????????????? | | ????????? "" " #?????????????????? | | ????????? " """#?????????????????? | | ???????? "a"#???????????#####?? | | ???????? " "##?????????##" #?? | | ???????? ""###???????#" #?? | | ?????????"" """#??????##" ##? | | ??????????""" "#????### ## | | ???????????###""" ##???# | | ??????????????#""" ##?## | | ??????????????#"""" ### | | ??????????????#"" ## | | ?????????????#"""" #### | | ???????????""" ""#?#"""" | | ???????????" c #"""##?##### | | ??????????? ######??????? | | ??????????? a ##???????????? | | ??????????? " @a ##????????????? | | ???????????? "" """a aa ""#?????????????? | | ?????????????""" " " ""# aa "##?????????????? | | ??????????????###""" """##"""""""##??????????????? | | ????????????????###""""#?#########???????????????? | | ??????????????????####???????????????????????????? | | ?????????????????????????????????????????????????? | | ?????????????????????????????????????????????????? | | ?????????????????????????????????????????????????? | | ?????????????????????????????????????????????????? | | ?????????????????????????????????????????????????? | | ?????????????????????????????????????????????????? | | ?????????????????????????????????????????????????? | | ?????????????????????????????????????????????????? | | ?????????????????????????????????????????????????? | | ?????????????????????????????????????????????????? | | ?????????????????????????????????????????????????? | | ?????????????????????????????????????????????????? | | ?????????????????????????????????????????????????? | | ?????????????????????????????????????????????????? | | ?????????????????????????????????????????????????? | | ?????????????????????????????????????????????????? | | ?????????????????????????????????????????????????? | | ?????????????????????????????????????????????????? | | ?????????????????????????????????????????????????? | +----------------------------------------------------+ Best States ------------- Heat Dissipation 25 Energy Generation 10 Energy Capacity 250 Matter Stores 300 Matter Capacity 300 Sight Range 16 Terrain Scan Density 10 Evasion (%) 40 Item Schematics ----------------- None Robot Schematics ------------------ None Fabricated ------------ Nothing Alien Tech Used ----------------- None Achievements -------------- None Challenges ------------ None Game ------ Seed ProcessingComponentTrap Manual? 0 Play Time 00:16:18 Cumulative 204.6 hours Start 2024.04.27 @ 18:59:20 End 2024.04.27 @ 19:18:20 Sessions 3 Manual Loads 0 Difficulty Rogue Special Mode None Game No. 178 Rogue 170 Adventurer 0 Explorer 8 Win Type - Total 7 Types 4/0/1/2/0/0/0/0/0 Lore% 58 Gallery% 67 Achievement% 53 Wizard Run 0 Options --------- Layout 0 ASCII 0 Keyboard 0 Movement Mouse Keybinds 0 Fullscreen 2 Font 36/Terminus Map View 76x50 Zoom Use 0% Tactical HUD 1 Map Filters NONE Filters NONE Steam 1 RUN: 09b6efd9-7723-4039-a8eb-793f03cbfccf